Cogmind - Beta 11 @@@ ROGUE MODE // 2022.04.04 @ 01:20:18 Player: Jezoensis Result: Destroyed by as-19350 with Assembled Maul Performance ------------- Evolutions (0) 0 Regions Visited (2) 400 Robots Destroyed (23) 115 Value Destroyed (387) 387 Prototype IDs (2) 40 Alien Tech Used (0) 0 Bonus (0) 0 TOTAL SCORE: 942 Bonus ------- None Cogmind --------- Core Integrity 0/250 Matter 196/300 Energy 100/100 System Corruption 14% Temperature Cool (0) Movement Treading (160) Location -10/Mines Parts ------- > --- POWER (1) -------- (None) > --- PROPULSION (2) --- Light Treads Light Treads > --- UTILITY (2) ------ Medium Storage Unit > --- WEAPON (2) ------- Assault Rifle > --- INVENTORY (10) --- Light Treads Improved Heat Sink High-capacity Storage Unit High-capacity Matter Pod (95) Sensor Array Improved Light Armor Plating Grenade Launcher Mining Laser Peak State ------------ > --- POWER ------------ Ion Engine > --- PROPULSION ------- Light Treads Light Treads > --- UTILITY ---------- Improved Heat Sink Medium Storage Unit > --- WEAPON ----------- EM Pulse Gun Assault Rifle > --- INVENTORY -------- Light Treads Light Treads High-capacity Storage Unit High-capacity Matter Pod Structural Scanner Structural Scanner Sensor Array Small Laser Grenade Launcher Mining Laser [Rating: 10] Favorites ----------- Power Ion Engine Engine Ion Engine Propulsion Light Treads Treads Light Treads Utility Structural Scanner Device Structural Scanner Storage Small Storage Unit Protection Improved Light Armor Plating Weapon Assault Rifle Energy Gun Small Laser Ballistic Gun Assault Rifle Launcher Grenade Launcher Special Weapon Mining Laser Build | -11 -10 -10 ------- Run | Scr Mat Min Slots Evolved . | . . . Power . | . . . Propulsion . | . . . Utility . | . . . Weapon . | . . . Parts Attached 31 | 7 17 7 Power 3 | 1 2 . Engine 3 | 1 2 . Core . | . . . Reactor . | . . . Propulsion 3 | 2 . 1 Treads 3 | 2 . 1 Leg . | . . . Wheel . | . . . Hover . | . . . Flight . | . . . Utility 14 | 2 9 3 Device 11 | 1 8 2 Storage 2 | 1 1 . Processor . | . . . Hackware . | . . . Protection 1 | . . 1 Artifact . | . . . Weapon 11 | 2 6 3 Energy Gun 5 | 1 3 1 Energy Cannon . | . . . Ballistic Gun 4 | 1 2 1 Ballistic Cannon . | . . . Launcher 1 | . . 1 Special Weapon 1 | . 1 . Impact Weapon . | . . . Slashing Weapon . | . . . Piercing Weapon . | . . . Special Melee Weapon . | . . . Unidentified Prototypes . | . . . Parts Lost 6 | . . 6 Power 1 | . . 1 Propulsion 1 | . . 1 Utility 2 | . . 2 Weapon 2 | . . 2 Highest Loss Streak 4 | . . 4 To Critical Strikes . | . . . Average Slot Usage (%) 97 | . 98 86 Engine 12 | . 14 3 Treads 28 | . 28 28 Device 12 | . 12 10 Storage 14 | . 14 14 Energy Gun 13 | . 13 9 Ballistic Gun 14 | . 14 14 Naked Turns . | . . . Heaviest Build 20 | 12 20 19 Greatest Support 40 | 40 40 40 Greatest Overweight (x) . | . . . Average Overweight (x) . | . . . Largest Inventory Capacity 10 | 8 10 10 Average Capacity 8 | 7 8 10 Most Carried 10 | 5 10 10 Average Carried 7 | 2 7 9 Final Capacity 10 | 8 10 10 Final Carried 10 | 3 10 8 Class Distribution -------------------- 100% | Mutant Dominant Class ---------------- Mutant | -10/Materials Mutant | -10/Mines Resources | -11 -10 -10 ----------- Run | Scr Mat Min Matter Collected 739 | 306 370 63 Remotely . | . . . Salvage Created 705 | 172 478 55 Parts 58 | 14 43 1 Haulers Intercepted 1 | . 1 . Recyclers Shooed . | . . . Parts Field Recycled . | . . . Retrieved Matter . | . . . Parts Self-Destructed . | . . . Prevented . | . . . Kills | -11 -10 -10 ------- Run | Scr Mat Min Combat Hostiles Destroyed 16 | . 11 5 Guns 13 | . 11 2 AOE 3 | . . 3 Classes Destroyed 8 | 2 5 1 Tunneler 5 | 5 . . Hauler 1 | . 1 . Recycler 2 | 1 . 1 Mechanic 1 | . 1 . Watcher 3 | . 3 . Swarmer 5 | . 5 . Grunt 6 | . 6 . Assembled 5 | . . 5 Best Kill Streak 5 | 5 5 4 Combat Bots Only 5 | . 5 4 Max Kills in Single Turn 2 | 1 1 2 Gunslinging . | . . . Exploded 2 | . . 2 Melee . | . . . Uniques/NPCs Destroyed . | . . . Combat | -11 -10 -10 -------- Run | Scr Mat Min Damage Taken 1032 | . 569 463 Core 255 | . 121 134 Absorbed by Shields . | . . . Core Remaining (%) 100 | 100 . . Volleys Fired 78 | 12 48 18 Largest 2 | 2 2 2 Hottest 100 | 60 100 60 Shots Fired 145 | 24 95 26 Gun 140 | 24 94 22 Cannon . | . . . Launcher 4 | . . 4 Special 1 | . 1 . Kinetic 73 | 12 47 14 Thermal 64 | 12 44 8 Explosive 4 | . . 4 Electromagnetic 4 | . 4 . Robot Hit Streak 27 | 5 27 3 Robot Miss Streak 8 | 3 8 4 Penetration Max . | . . . Secondary Targets . | . . . Shots Hit Robots 84 | 14 59 11 Core Hits 42 | 7 24 11 Critical Kills 1 | . 1 . Critical Parts Destroyed . | . . . Critical Strikes 1 | . 1 . Destroy 1 | . 1 . Melee Attacks . | . . . Impact . | . . . Slashing . | . . . Piercing . | . . . Sneak Attacks . | . . . Combat Hostiles . | . . . Follow-up Attacks . | . . . Damage Inflicted 1250 | 169 726 355 Guns 1027 | 169 726 132 Cannons . | . . . Explosions 223 | . . 223 Melee . | . . . Ramming . | . . . Kinetic 520 | 79 353 88 Thermal 454 | 90 320 44 Explosive 223 | . . 223 Electromagnetic 53 | . 53 . Impact . | . . . Slashing . | . . . Piercing . | . . . Highest Corruption 14 | . . 14 Average Corruption 7 | . . 7 Corruption Purged . | . . . Corruption Blocked . | . . . Effects 3 | . . 3 Message Errors 1 | . . 1 Matter Fused 1 | . . 1 Heat Flow Errors 1 | . . 1 Overload Shots . | . . . Overflow Damage 21 | . . 21 Projectiles . | . . . Explosions 21 | . . 21 Melee . | . . . Knockbacks . | . . . Impact . | . . . Kinetic . | . . . Secondary . | . . . Self-Inflicted Damage 84 | . . 84 Shots 4 | . . 4 Rammed . | . . . Targets Rammed . | . . . Kicked . | . . . Crushed . | . . . Highest Temperature 138 | . 54 138 Average Temperature 40 | . 38 46 Received Heat Transfer 230 | . 150 80 Siege Activations . | . . . Robots Corrupted . | . . . Combat Hostiles . | . . . Parts Fried . | . . . Impact Corruptions . | . . . Robots Melted . | . . . Combat Hostiles . | . . . Parts Melted . | . . . Heat Transferred 1025 | 200 725 100 Parts Sabotaged . | . . . Parts Stolen . | . . . Parts Stripped . | . . . Power Chain Reactions . | . . . Missiles Intercepted . | . . . Alert | -11 -10 -10 ------- Run | Scr Mat Min Peak Influence 250 | 30 250 36 Initial 19 | . 19 . Average 63 | 11 79 5 Maximum Alert Level 1 | . 1 . Low Security (%) 98 | 100 97 100 Level 1 1 | . 2 . Level 2 . | . . . Level 3 . | . . . Level 4 . | . . . Level 5 . | . . . High Security . | . . . Max Security . | . . . Squads Dispatched 2 | . 2 . Investigation 1 | . 1 . Extermination . | . . . Reinforcement 1 | . 1 . Assault . | . . . Garrison . | . . . Intercept . | . . . Searches Triggered . | . . . Construction Impeded . | . . . Haulers Reinforced . | . . . Active Scanning Responses . | . . . Cargo Convoy Interrupts . | . . . Stealth | -11 -10 -10 --------- Run | Scr Mat Min Distress Signals 2 | . 2 . Communications Jammed . | . . . Distress Signals . | . . . Times Spotted 29 | . 19 10 Peak Tracking Total 4 | . 4 4 Tactical Retreats 1 | . 1 . Traps | -11 -10 -10 ------- Run | Scr Mat Min Traps Triggered 2 | . 2 . Indirectly . | . . . Trap Hack Attempts . | . . . Triggered . | . . . Disarmed . | . . . Reprogrammed . | . . . Reused . | . . . Traps Extracted . | . . . Installed . | . . . Triggered . | . . . Machines | -11 -10 -10 ---------- Run | Scr Mat Min Machines Disabled 1 | . 1 . Max in Single Turn 1 | . 1 . Machines Sabotaged . | . . . Garrisons Compromised . | . . . Overloaded Fab Kills . | . . . Hacking | -11 -10 -10 --------- Run | Scr Mat Min Machines Accessed 6 | . 6 . Terminals 6 | . 6 . Fabricators . | . . . Repair Stations . | . . . Recycling Units . | . . . Scanalyzers . | . . . Garrison Access . | . . . Total Hacks 24 | . 24 . Successful 15 | . 15 . Failed 9 | . 9 . Catastrophic 1 | . 1 . Database Lockouts . | . . . Manual 19 | . 19 . Terminals 24 | . 24 . Fabricators . | . . . Repair Stations . | . . . Recycling Units . | . . . Scanalyzers . | . . . Garrison Access . | . . . Terminal Hacks 11 | . 11 . Robot Analysis 5 | . 5 . Prototype ID Bank 1 | . 1 . Terminal Index 1 | . 1 . Unreport Threat 2 | . 2 . Locate Traps 1 | . 1 . Recall Investigation 1 | . 1 . Fabricator Hacks . | . . . Repair Station Hacks . | . . . Recycling Unit Hacks . | . . . Scanalyzer . | . . . Garrison Access Hacks . | . . . Unauthorized Hacks 4 | . 4 . Terminals 4 | . 4 . Track 1 | . 1 . Botnet 2 | . 2 . Operators 1 | . 1 . Fabricators . | . . . Repair Stations . | . . . Recycling Units . | . . . Scanalyzers . | . . . Garrison Access . | . . . Data Cores Recovered . | . . . Used . | . . . Hacking Detections 6 | . 6 . Full Trace Events 1 | . 1 . Feedback Events . | . . . Feedback Blocked . | . . . Robot Schematics Acquired . | . . . Robots Built . | . . . Authchips . | . . . Time . | . . . Total Robot Build Rating . | . . . Part Schematics Acquired . | . . . Parts Built . | . . . Authchips . | . . . Time . | . . . Total Part Build Rating . | . . . Parts Repaired . | . . . Time . | . . . Parts Recycled . | . . . Recycled Matter . | . . . Retrieved Matter . | . . . Retrieved Components . | . . . Parts Scanalyzed . | . . . Part Schematics Acquired . | . . . Parts Damaged . | . . . Bothacking | -11 -10 -10 ------------ Run | Scr Mat Min Used RIF Installer . | . . . Robots Hacked . | . . . Non-combat . | . . . Combat . | . . . Robot Hacks Applied . | . . . Relay Couplers Released . | . . . Fabnet Peak Effective % . | . . . Robots Rewired . | . . . Allies Hacked . | . . . Hacks Repelled . | . . . Allies | -11 -10 -10 -------- Run | Scr Mat Min Total Allies . | . . . Largest Group . | . . . Highest-Rated Group . | . . . Highest-Rated Ally . | . . . Total Orders . | . . . Ally Attacks . | . . . Total Damage . | . . . Kills . | . . . Allies Corrupted . | . . . Allies Melted . | . . . Intel | -11 -10 -10 ------- Run | Scr Mat Min Robot Analysis Total 5 | . 5 . Derelict Logs Recovered . | . . . Drone Launches . | . . . Drone Recoveries . | . . . Exploration | -11 -10 -10 ------------- Run | Scr Mat Min Turns Passed 1025 | 96 804 125 Spaces Moved 472 | 43 384 45 Core 21 | 21 . . Treads 451 | 22 384 45 Legs . | . . . Wheels . | . . . Hover . | . . . Flight . | . . . Fastest Speed 50 | 50 160 160 Average Speed 155 | 106 160 160 Slowest Speed 160 | 160 160 160 Overloaded Moves . | . . . Propulsion Burnouts . | . . . Robots Hopped . | . . . Cave-ins Triggered . | . . . Exploration Rate (%) 34 | 4 86 12 Regions Visited 2 Branch Regions 1 Pre-discovered Areas . | . . . Known Exits Taken . | . . . Unknown Exits Taken 2 | 1 1 . Scrap Searched . | . . . Spaces Dug 1 | . 1 . Terrain Destroyed 34 | . 1 33 Melee . | . . . Projectile 1 | . 1 . AOE 33 | . . 33 Terrain Rammed . | . . . Walls Destroyed . | . . . Machines Disabled . | . . . Actions | -11 -10 -10 --------- Run | Scr Mat Min Total 615 | 67 477 71 Wait 9 | . 9 . Move 470 | 42 383 45 Hop . | . . . Pick Up 15 | 6 9 . Fast Attach 7 | 4 2 1 Attach 9 | 3 3 3 Detach 4 | . 3 1 Swap 15 | . 12 3 Drop 8 | . 8 . Fire 78 | 12 48 18 Melee . | . . . Ram . | . . . Kick . | . . . Crush . | . . . Escape Stasis . | . . . Rewire . | . . . Trap . | . . . Miscellaneous . | . . . Route ------- -11/Scrapyard -10/Materials (discovered 5 exits: [*Mat x3] / [*Min x2]) -10/Mines History --------- Turn | Location | Event 8 | -11/Scrapyard | Discovered new exit (range 15) 97 | -11/Scrapyard | Entered Materials 200 | -10/Materials | Discovered new exit (range 9) 316 | -10/Materials | Build established: Mutant 320 | -10/Materials | Discovered new exit (range 16) 525 | -10/Materials | Discovered new exit (range 16) 575 | -10/Materials | Discovered new exit (range 13) 866 | -10/Materials | Discovered new exit (range 8) 901 | -10/Materials | Entered Mines 907 | -10/Mines | Assembled infested the area 912 | -10/Mines | Assisted by a Guerilla fighting off Assembled 941 | -10/Mines | Core integrity fell below 50% 1009 | -10/Mines | Core integrity fell below 20% 1015 | -10/Mines | System corruption reached 10% 1026 | -10/Mines | Destroyed by as-19350 with Assembled Maul Last Messages --------------- 00974_ The unstable cave ceiling collapses. 00977_ Lgt. Treads destroyed. 00977_ as-18733 destroyed. 00977_ as-33445 destroyed. 00978_ The unstable cave ceiling collapses. 00990_ Acquired 2 matter. 00992_ The unstable cave ceiling collapses. 00999_ 1VYAK%/QM9CODD&9NH4&G#B &Y4PL,BWNEMP 00999_ Acquired 15 matter. 01001_ R-06 Scavenger destroyed. 01001_ Assault Rifle destroyed. 01001_ Destroyed Assault Rifle. 01003_ as-86298 destroyed. 01006_ The unstable cave ceiling collapses. 01014_ Sml. Laser destroyed. 01014_ System corrupted by crushing effect (+5). 01017_ The unstable cave ceiling collapses. 01017_ Structural Scanner destroyed. 01017_ System corrupted by crushing effect (+2). 01022_ The unstable cave ceiling collapses. Map ----- +----------------------------------------------------+ | ?????????????????????????????????????????????????? | | ?????????????????????????????????????????????????? | | ?????????????????????????????????????????????????? | | ?????????????????????????????????????????????????? | | ?????????????????????????????????????????????????? | | ?????????????????????????????????????????????????? | | ?????????????????????????????????????????????????? | | ?????????????????????????????????????????????????? | | ?????????????????????????????????????????????????? | | ???????????????????????????? ????????????????????? | | ???????????????????????????? ??????????????????? | | ???????????????????????????? ??????????????????? | | ???????????????????????????? #?????????????????? | | ??????????????????????????? ##?????????????????? | | ?????????????????????????## %##?????????????????? | | ?????????????????????????##% ##????????????????? | | ?????????????????????????# %% ##????????????????? | | ????????????????????###### % ##????????????????? | | ????????????????????###### ????????############ | | ????????????????????## # #????????############ | | ????????????????## ### #=##????????## ^ ## | | ????????????????## ### %##????????## # ## | | ????????????????## % !%*##????????## # ^ ## | | ???????????????##### ]############# # ## | | ?????????????####### ## a# ############^^## ## | | ?????????????#### @ ## | | ?????????## # # # ########### ## | | ?????????### # # # # # ###################### | | ?????????## ##???????############ | | ????????? # %# # # ##??????????????????? | | ?????????## # ###??????????????????? | | ?????????## % # ###??????????????????? | | ?????????## ##### # # ????????????????? | | ?????????## ############## #####????????????????? | | ????????? ##??####### #####????????????????? | | ??????? # ??????????????? #???????????????????? | | ?????? # ??????????????? #???????????????????? | | ?????? ?????????????????? ##???????????????????? | | ?????????????????????????? ###???????????????????? | | ?????????????????????????? ###???????????????????? | | ?????????????????????????????????????????????????? | | ?????????????????????????????????????????????????? | | ?????????????????????????????????????????????????? | | ?????????????????????????????????????????????????? | | ?????????????????????????????????????????????????? | | ?????????????????????????????????????????????????? | | ?????????????????????????????????????????????????? | | ?????????????????????????????????????????????????? | | ?????????????????????????????????????????????????? | | ?????????????????????????????????????????????????? | +----------------------------------------------------+ Best States ------------- Heat Dissipation 39 Energy Generation 10 Energy Capacity 250 Matter Stores 300 Matter Capacity 300 Sight Range 16 Terrain Scan Density 10 Armor Coverage 150 Evasion (%) 50 Recoil Reduction 2 Item Schematics ----------------- None Robot Schematics ------------------ None Fabricated ------------ Nothing Alien Tech Used ----------------- None Achievements -------------- None Challenges ------------ None Game ------ Seed SkeletonChipActivator Manual? 0 Play Time 00:14:40 Cumulative 568.2 hours Start 2022.04.04 @ 01:08:01 End 2022.04.04 @ 01:20:18 Sessions 1 Manual Loads 0 Difficulty Rogue Special Mode None Game No. 277 Rogue 150 Adventurer 125 Explorer 2 Win Type - Total 51 Types 44/3/2/0/1/0/0/0/1 Lore% 71 Gallery% 85 Achievement% 68 Wizard Run 0 Options --------- ASCII 0 Keyboard 1 Movement Numpad Keybinds 0 Fullscreen 1 Font 36/TerminusFine Map View 76x50 Tactical HUD 1 Map Filters NONE Filters NONE Steam 1 RUN: 4bc233eb-55c6-44c2-8553-6a3117fe6d65